[Event "Titled Tuesday Blitz February 22 Early 2022"]
[White "Marcinczyk, Monika"]
[Black "Ismayil, Malak"]
[WhiteFideId "1192051"]
[BlackFideId "13412604"]
[WhiteElo "1730"]
[BlackElo "1879"]
[Result "1/2-1/2"]
[Round "05"]
[TimeControl "180+1"]
[Date "2022.02.22"]
[WhiteClock "0:00:11"]
[BlackClock "0:00:05"]

1. e4 {[%clk 0:02:43]}  e5 {[%clk 0:02:58]} 2. Nf3 {[%clk 0:02:41]}  Nc6 {[%clk 0:02:57]} 3. Bb5 {[%clk 0:02:40]}  a6 {[%clk 0:02:56]} 4. Ba4 {[%clk 0:02:41]}  Nf6 {[%clk 0:02:55]} 5. d3 {[%clk 0:02:40]}  b5 {[%clk 0:02:55]} 6. Bb3 {[%clk 0:02:40]}  Be7 {[%clk 0:02:54]} 7. O-O {[%clk 0:02:40]}  O-O {[%clk 0:02:54]} 8. h3 {[%clk 0:02:40]}  d6 {[%clk 0:02:55]} 9. c3 {[%clk 0:02:40]}  h6 {[%clk 0:02:51]} 10. Re1 {[%clk 0:02:34]}  Re8 {[%clk 0:02:51]} 11. Nbd2 {[%clk 0:02:34]}  Bf8 {[%clk 0:02:50]} 12. Nf1 {[%clk 0:02:34]}  Qe7 {[%clk 0:02:47]} 13. Ng3 {[%clk 0:02:29]}  g6 {[%clk 0:02:39]} 14. d4 {[%clk 0:02:22]}  Bg7 {[%clk 0:02:35]} 15. d5 {[%clk 0:02:20]}  Nb8 {[%clk 0:02:34]} 16. a4 {[%clk 0:02:19]}  Bb7 {[%clk 0:02:29]} 17. axb5 {[%clk 0:02:16]}  axb5 {[%clk 0:02:30]} 18. Rxa8 {[%clk 0:02:13]}  Bxa8 {[%clk 0:02:29]} 19. Qd3 {[%clk 0:02:13]}  c6 {[%clk 0:02:25]} 20. dxc6 {[%clk 0:02:10]}  Bxc6 {[%clk 0:02:26]} 21. Be3 {[%clk 0:02:06]}  Rd8 {[%clk 0:02:15]} 22. Rd1 {[%clk 0:01:32]}  Qb7 {[%clk 0:02:11]} 23. Bd5 {[%clk 0:01:30]}  Bxd5 {[%clk 0:02:08]} 24. exd5 {[%clk 0:01:30]}  Nbd7 {[%clk 0:02:03]} 25. b3 {[%clk 0:01:28]}  Re8 {[%clk 0:02:00]} 26. Qd2 {[%clk 0:01:18]}  Kh7 {[%clk 0:01:57]} 27. c4 {[%clk 0:01:15]}  bxc4 {[%clk 0:01:55]} 28. bxc4 {[%clk 0:01:15]}  Qc7 {[%clk 0:01:48]} 29. Qa2 {[%clk 0:01:07]}  Rc8 {[%clk 0:01:38]} 30. Nd2 {[%clk 0:01:06]}  Nb6 {[%clk 0:01:28]} 31. Bxb6 {[%clk 0:00:49]}  Qxb6 {[%clk 0:01:29]} 32. Rb1 {[%clk 0:00:47]}  Qc7 {[%clk 0:00:56]} 33. Qa6 {[%clk 0:00:32]}  Rb8 {[%clk 0:00:41]} 34. Rxb8 {[%clk 0:00:30]}  Qxb8 {[%clk 0:00:42]} 35. Nge4 {[%clk 0:00:30]}  Ne8 {[%clk 0:00:39]} 36. Kh2 {[%clk 0:00:19]}  f5 {[%clk 0:00:39]} 37. Nc3 {[%clk 0:00:18]}  e4 {[%clk 0:00:37]} 38. Nb5 {[%clk 0:00:18]}  Be5+ {[%clk 0:00:37]} 39. g3 {[%clk 0:00:18]}  Qd8 {[%clk 0:00:29]} 40. Qa7+ {[%clk 0:00:16]}  Ng7 {[%clk 0:00:26]} 41. Qf7 {[%clk 0:00:15]}  Qg5 {[%clk 0:00:23]} 42. Nf1 {[%clk 0:00:15]}  Qc1 {[%clk 0:00:20]} 43. Ne3 {[%clk 0:00:15]}  Qd2 {[%clk 0:00:19]} 44. Kg2 {[%clk 0:00:15]}  Qe2 {[%clk 0:00:13]} 45. Nc7 {[%clk 0:00:14]}  Qf3+ {[%clk 0:00:12]} 46. Kg1 {[%clk 0:00:13]}  Bxg3 {[%clk 0:00:11]} 47. fxg3 {[%clk 0:00:11]}  Qxe3+ {[%clk 0:00:11]} 48. Kh2 {[%clk 0:00:11]}  Qf2+ {[%clk 0:00:11]} 49. Kh1 {[%clk 0:00:12]}  Qf1+ {[%clk 0:00:08]} 50. Kh2 {[%clk 0:00:12]}  Qf2+ {[%clk 0:00:08]} 51. Kh1 {[%clk 0:00:11]}  Qf3+ {[%clk 0:00:08]} 52. Kh2 {[%clk 0:00:11]}  Qf2+ {[%clk 0:00:05]} 1/2-1/2


[Site "https://www.chess.com"]

[Event "Titled Tuesday Blitz February 22 Early 2022"]
[White "Martin, Lewis"]
[Black "Zavivaeva, Emilia"]
[WhiteFideId "410551"]
[BlackFideId "34127531"]
[WhiteElo "2145"]
[BlackElo "1685"]
[Result "1-0"]
[Round "05"]
[TimeControl "180+1"]
[Date "2022.02.22"]
[WhiteClock "0:01:45"]
[BlackClock "0:00:24"]

1. e4 {[%clk 0:03:00]}  d5 {[%clk 0:02:58]} 2. exd5 {[%clk 0:03:00]}  Qxd5 {[%clk 0:02:59]} 3. Nc3 {[%clk 0:03:00]}  Qa5 {[%clk 0:02:58]} 4. Bc4 {[%clk 0:02:57]}  Nf6 {[%clk 0:02:56]} 5. Nge2 {[%clk 0:02:57]}  Bg4 {[%clk 0:02:48]} 6. f3 {[%clk 0:02:56]}  Bf5 {[%clk 0:02:46]} 7. d3 {[%clk 0:02:56]}  e6 {[%clk 0:02:44]} 8. O-O {[%clk 0:02:54]}  Bc5+ {[%clk 0:02:27]} 9. Kh1 {[%clk 0:02:53]}  O-O {[%clk 0:02:23]} 10. a3 {[%clk 0:02:52]}  Be7 {[%clk 0:02:13]} 11. Nd4 {[%clk 0:02:37]}  Bg6 {[%clk 0:01:39]} 12. Qe2 {[%clk 0:02:35]}  c6 {[%clk 0:01:36]} 13. Nxe6 {[%clk 0:02:32]}  Re8 {[%clk 0:01:29]} 14. Nf4 {[%clk 0:02:22]}  b5 {[%clk 0:01:21]} 15. Nxg6 {[%clk 0:02:20]}  hxg6 {[%clk 0:01:19]} 16. Bb3 {[%clk 0:02:18]}  b4 {[%clk 0:01:17]} 17. Ne4 {[%clk 0:02:12]}  Nbd7 {[%clk 0:01:13]} 18. Ng5 {[%clk 0:02:07]}  Nd5 {[%clk 0:01:02]} 19. Qf2 {[%clk 0:01:54]}  Nc5 {[%clk 0:00:52]} 20. Bc4 {[%clk 0:01:51]}  bxa3 {[%clk 0:00:33]} 21. Rxa3 {[%clk 0:01:48]}  Qd8 {[%clk 0:00:32]} 22. Qh4 {[%clk 0:01:46]}  Ne6 {[%clk 0:00:24]} 23. Qh7+ {[%clk 0:01:45]} 1-0


[Site "https://www.chess.com"]

[Event "Titled Tuesday Blitz February 22 Early 2022"]
[White "Maze, Sebastien"]
[Black "Moroni, Luca Jr"]
[WhiteFideId "613762"]
[BlackFideId "865834"]
[WhiteElo "2462"]
[BlackElo "2573"]
[Result "0-1"]
[Round "05"]
[TimeControl "180+1"]
[Date "2022.02.22"]
[WhiteClock "0:00:16"]
[BlackClock "0:00:56"]

1. e4 {[%clk 0:02:49]}  d6 {[%clk 0:02:57]} 2. d4 {[%clk 0:02:47]}  e5 {[%clk 0:02:57]} 3. dxe5 {[%clk 0:02:45]}  dxe5 {[%clk 0:02:58]} 4. Qxd8+ {[%clk 0:02:45]}  Kxd8 {[%clk 0:02:59]} 5. Bc4 {[%clk 0:02:45]}  f6 {[%clk 0:02:59]} 6. f4 {[%clk 0:02:35]}  Nd7 {[%clk 0:02:52]} 7. Nf3 {[%clk 0:02:34]}  Bd6 {[%clk 0:02:52]} 8. g3 {[%clk 0:02:20]}  Ne7 {[%clk 0:02:43]} 9. Nc3 {[%clk 0:02:19]}  c6 {[%clk 0:02:44]} 10. a4 {[%clk 0:02:18]}  Kc7 {[%clk 0:02:39]} 11. Be3 {[%clk 0:02:14]}  a5 {[%clk 0:02:33]} 12. O-O-O {[%clk 0:02:13]}  Ng6 {[%clk 0:02:24]} 13. f5 {[%clk 0:02:09]}  Ne7 {[%clk 0:02:24]} 14. Rd3 {[%clk 0:02:02]}  Bb4 {[%clk 0:02:19]} 15. Rhd1 {[%clk 0:01:47]}  Nc5 {[%clk 0:02:17]} 16. Bxc5 {[%clk 0:01:46]}  Bxc5 {[%clk 0:02:18]} 17. Be6 {[%clk 0:01:43]}  Bxe6 {[%clk 0:02:06]} 18. fxe6 {[%clk 0:01:39]}  Rad8 {[%clk 0:02:07]} 19. Rd7+ {[%clk 0:01:38]}  Rxd7 {[%clk 0:01:52]} 20. Rxd7+ {[%clk 0:01:37]}  Kc8 {[%clk 0:01:52]} 21. Nd2 {[%clk 0:01:12]}  Rd8 {[%clk 0:01:48]} 22. Rxd8+ {[%clk 0:01:11]}  Kxd8 {[%clk 0:01:48]} 23. Nc4 {[%clk 0:01:12]}  b6 {[%clk 0:01:43]} 24. Nd1 {[%clk 0:00:51]}  Ng6 {[%clk 0:01:34]} 25. Nde3 {[%clk 0:00:44]}  Nf8 {[%clk 0:01:29]} 26. e7+ {[%clk 0:00:38]}  Kxe7 {[%clk 0:01:27]} 27. Nf5+ {[%clk 0:00:38]}  Kf7 {[%clk 0:01:23]} 28. c3 {[%clk 0:00:38]}  Nd7 {[%clk 0:01:12]} 29. h3 {[%clk 0:00:21]}  g6 {[%clk 0:01:11]} 30. Nh4 {[%clk 0:00:20]}  Bf2 {[%clk 0:01:07]} 31. Nf3 {[%clk 0:00:19]}  Bxg3 {[%clk 0:01:06]} 32. b4 {[%clk 0:00:19]}  axb4 {[%clk 0:01:01]} 33. cxb4 {[%clk 0:00:19]}  Ke6 {[%clk 0:00:58]} 34. a5 {[%clk 0:00:18]}  bxa5 {[%clk 0:00:59]} 35. bxa5 {[%clk 0:00:18]}  Bf2 {[%clk 0:00:59]} 36. Kd2 {[%clk 0:00:17]}  Bc5 {[%clk 0:00:58]} 37. a6 {[%clk 0:00:16]}  Nb8 {[%clk 0:00:56]} 0-1


[Site "https://www.chess.com"]

[Event "Titled Tuesday Blitz February 22 Early 2022"]
[White "Melian, Juan Sebastian"]
[Black "Agibileg, Uurtsaikh"]
[WhiteFideId "3706575"]
[BlackFideId "4901606"]
[WhiteElo "1842"]
[BlackElo "2205"]
[Result "1-0"]
[Round "05"]
[TimeControl "180+1"]
[Date "2022.02.22"]
[WhiteClock "0:00:06"]
[BlackClock "0:00:01"]

1. Nf3 {[%clk 0:03:00]}  Nf6 {[%clk 0:02:57]} 2. b3 {[%clk 0:03:00]}  g6 {[%clk 0:02:57]} 3. Bb2 {[%clk 0:03:00]}  Bg7 {[%clk 0:02:57]} 4. e3 {[%clk 0:03:00]}  O-O {[%clk 0:02:58]} 5. c4 {[%clk 0:02:56]}  c5 {[%clk 0:02:58]} 6. Be2 {[%clk 0:02:56]}  b6 {[%clk 0:02:57]} 7. O-O {[%clk 0:02:56]}  Bb7 {[%clk 0:02:57]} 8. d4 {[%clk 0:02:56]}  Ne4 {[%clk 0:02:56]} 9. Qc2 {[%clk 0:02:53]}  cxd4 {[%clk 0:02:50]} 10. Nxd4 {[%clk 0:02:48]}  Na6 {[%clk 0:02:29]} 11. a3 {[%clk 0:02:27]}  d5 {[%clk 0:02:27]} 12. Rd1 {[%clk 0:02:23]}  Rc8 {[%clk 0:02:21]} 13. Nd2 {[%clk 0:02:09]}  Nxd2 {[%clk 0:01:25]} 14. Qxd2 {[%clk 0:02:10]}  Nc5 {[%clk 0:01:21]} 15. b4 {[%clk 0:02:09]}  Ne4 {[%clk 0:01:18]} 16. Qe1 {[%clk 0:02:00]}  dxc4 {[%clk 0:00:54]} 17. Ne6 {[%clk 0:01:21]}  fxe6 {[%clk 0:00:46]} 18. Bxg7 {[%clk 0:01:01]}  Qe8 {[%clk 0:00:25]} 19. Bxf8 {[%clk 0:00:54]}  Qxf8 {[%clk 0:00:26]} 20. f3 {[%clk 0:00:54]}  Nd6 {[%clk 0:00:23]} 21. Rac1 {[%clk 0:00:52]}  Qf6 {[%clk 0:00:21]} 22. e4 {[%clk 0:00:30]}  c3 {[%clk 0:00:20]} 23. Bd3 {[%clk 0:00:18]}  Qd4+ {[%clk 0:00:19]} 24. Qf2 {[%clk 0:00:18]}  Qe5 {[%clk 0:00:17]} 25. Rc2 {[%clk 0:00:15]}  Bc6 {[%clk 0:00:14]} 26. Rdc1 {[%clk 0:00:14]}  Ba4 {[%clk 0:00:14]} 27. Re2 {[%clk 0:00:14]}  g5 {[%clk 0:00:12]} 28. Qe3 {[%clk 0:00:13]}  h6 {[%clk 0:00:11]} 29. g3 {[%clk 0:00:14]}  Kh8 {[%clk 0:00:10]} 30. f4 {[%clk 0:00:14]}  gxf4 {[%clk 0:00:11]} 31. gxf4 {[%clk 0:00:15]}  Qg7+ {[%clk 0:00:10]} 32. Rg2 {[%clk 0:00:15]}  Qf7 {[%clk 0:00:04]} 33. f5 {[%clk 0:00:14]}  Qf6 {[%clk 0:00:02]} 34. e5 {[%clk 0:00:11]}  Nxf5 {[%clk 0:00:02]} 35. Bxf5 {[%clk 0:00:07]}  Qxf5 {[%clk 0:00:03]} 36. Qxh6+ {[%clk 0:00:06]}  Qh7 {[%clk 0:00:03]} 37. Qe3 {[%clk 0:00:05]}  c2 {[%clk 0:00:03]} 38. Rg3 {[%clk 0:00:05]}  Bc6 {[%clk 0:00:03]} 39. Rh3 {[%clk 0:00:06]}  Rg8+ {[%clk 0:00:02]} 40. Kf2 {[%clk 0:00:05]}  Rg2+ {[%clk 0:00:02]} 41. Ke1 {[%clk 0:00:06]}  Rg1+ {[%clk 0:00:01]} 42. Kd2 {[%clk 0:00:06]} 1-0


[Site "https://www.chess.com"]

[Event "Titled Tuesday Blitz February 22 Early 2022"]
[White "Mikhailovsky, Vladimir"]
[Black "Guseinov, Gadir"]
[WhiteFideId "34105414"]
[BlackFideId "13401378"]
[WhiteElo "2371"]
[BlackElo "2581"]
[Result "0-1"]
[Round "05"]
[TimeControl "180+1"]
[Date "2022.02.22"]
[WhiteClock "0:00:03"]
[BlackClock "0:01:01"]

1. c4 {[%clk 0:03:00]}  g6 {[%clk 0:02:58]} 2. Nc3 {[%clk 0:02:59]}  Bg7 {[%clk 0:02:59]} 3. d4 {[%clk 0:02:59]}  d6 {[%clk 0:03:00]} 4. e4 {[%clk 0:02:59]}  Nf6 {[%clk 0:03:00]} 5. Be2 {[%clk 0:03:00]}  O-O {[%clk 0:03:01]} 6. Be3 {[%clk 0:03:01]}  c5 {[%clk 0:02:59]} 7. dxc5 {[%clk 0:02:59]}  Qa5 {[%clk 0:02:59]} 8. Bd2 {[%clk 0:02:57]}  dxc5 {[%clk 0:02:57]} 9. Nf3 {[%clk 0:02:48]}  Nc6 {[%clk 0:02:56]} 10. O-O {[%clk 0:02:45]}  Bg4 {[%clk 0:02:56]} 11. h3 {[%clk 0:02:35]}  Bxf3 {[%clk 0:02:56]} 12. Bxf3 {[%clk 0:02:36]}  e6 {[%clk 0:02:50]} 13. Na4 {[%clk 0:02:17]}  Qc7 {[%clk 0:02:45]} 14. Nxc5 {[%clk 0:02:17]}  Ne5 {[%clk 0:02:38]} 15. Nb3 {[%clk 0:02:04]}  Qxc4 {[%clk 0:02:36]} 16. Rc1 {[%clk 0:01:58]}  Nxf3+ {[%clk 0:02:35]} 17. gxf3 {[%clk 0:01:37]}  Qb5 {[%clk 0:02:34]} 18. Rc5 {[%clk 0:01:34]}  Qa4 {[%clk 0:02:31]} 19. Ra5 {[%clk 0:01:20]}  Qc6 {[%clk 0:02:30]} 20. Be3 {[%clk 0:01:10]}  b6 {[%clk 0:02:28]} 21. Nd4 {[%clk 0:00:56]}  Qc7 {[%clk 0:02:26]} 22. Ra3 {[%clk 0:00:54]}  Nh5 {[%clk 0:02:25]} 23. Nb5 {[%clk 0:00:36]}  Qe5 {[%clk 0:02:21]} 24. Nd6 {[%clk 0:00:26]}  Rad8 {[%clk 0:02:20]} 25. Rd3 {[%clk 0:00:26]}  Nf4 {[%clk 0:02:19]} 26. Bxf4 {[%clk 0:00:20]}  Qxf4 {[%clk 0:02:20]} 27. Nc4 {[%clk 0:00:20]}  Rc8 {[%clk 0:02:14]} 28. b3 {[%clk 0:00:18]}  b5 {[%clk 0:02:12]} 29. Ne3 {[%clk 0:00:14]}  Be5 {[%clk 0:02:12]} 30. Re1 {[%clk 0:00:15]}  Qh2+ {[%clk 0:02:09]} 31. Kf1 {[%clk 0:00:15]}  Qxh3+ {[%clk 0:02:09]} 32. Ke2 {[%clk 0:00:16]}  Qh4 {[%clk 0:02:05]} 33. Rh1 {[%clk 0:00:15]}  Qe7 {[%clk 0:02:05]} 34. Ng4 {[%clk 0:00:10]}  Bg7 {[%clk 0:02:05]} 35. Rd7 {[%clk 0:00:08]}  Qa3 {[%clk 0:02:04]} 36. Qd2 {[%clk 0:00:07]}  b4 {[%clk 0:02:03]} 37. Kf1 {[%clk 0:00:05]}  h5 {[%clk 0:01:53]} 38. Nh6+ {[%clk 0:00:03]}  Bxh6 {[%clk 0:01:53]} 39. Qxh6 {[%clk 0:00:04]}  Qc1+ {[%clk 0:01:51]} 40. Qxc1 {[%clk 0:00:03]}  Rxc1+ {[%clk 0:01:52]} 41. Kg2 {[%clk 0:00:04]}  Rc2 {[%clk 0:01:49]} 42. Rxa7 {[%clk 0:00:04]}  Rd8 {[%clk 0:01:49]} 43. Rf1 {[%clk 0:00:03]}  Rdd2 {[%clk 0:01:49]} 44. Ra4 {[%clk 0:00:04]}  Rxa2 {[%clk 0:01:45]} 45. Rxb4 {[%clk 0:00:04]}  Kg7 {[%clk 0:01:45]} 46. f4 {[%clk 0:00:04]}  Rab2 {[%clk 0:01:42]} 47. Rb7 {[%clk 0:00:04]}  Rd4 {[%clk 0:01:41]} 48. f5 {[%clk 0:00:04]}  Rxe4 {[%clk 0:01:39]} 49. fxg6 {[%clk 0:00:04]}  Kxg6 {[%clk 0:01:38]} 50. Kf3 {[%clk 0:00:05]}  Re5 {[%clk 0:01:35]} 51. Rg1+ {[%clk 0:00:05]}  Kf6 {[%clk 0:01:36]} 52. Rf1 {[%clk 0:00:04]}  Rd5 {[%clk 0:01:36]} 53. Ke3 {[%clk 0:00:04]}  Rdd2 {[%clk 0:01:35]} 54. Rb8 {[%clk 0:00:04]}  Re2+ {[%clk 0:01:35]} 55. Kf3 {[%clk 0:00:04]}  Rec2 {[%clk 0:01:36]} 56. b4 {[%clk 0:00:04]}  Rc3+ {[%clk 0:01:36]} 57. Kg2 {[%clk 0:00:04]}  Rcb3 {[%clk 0:01:37]} 58. Rh1 {[%clk 0:00:03]}  Rxb4 {[%clk 0:01:29]} 59. Rxb4 {[%clk 0:00:04]}  Rxb4 {[%clk 0:01:29]} 60. Rxh5 {[%clk 0:00:05]}  e5 {[%clk 0:01:30]} 61. Rh3 {[%clk 0:00:05]}  Ke6 {[%clk 0:01:29]} 62. Rf3 {[%clk 0:00:05]}  f5 {[%clk 0:01:29]} 63. Ra3 {[%clk 0:00:06]}  e4 {[%clk 0:01:28]} 64. Kg3 {[%clk 0:00:07]}  Rb2 {[%clk 0:01:22]} 65. Ra6+ {[%clk 0:00:06]}  Ke5 {[%clk 0:01:21]} 66. Ra5+ {[%clk 0:00:06]}  Kf6 {[%clk 0:01:21]} 67. Ra3 {[%clk 0:00:07]}  Rd2 {[%clk 0:01:20]} 68. f3 {[%clk 0:00:07]}  Rd3 {[%clk 0:01:18]} 69. Rxd3 {[%clk 0:00:06]}  exd3 {[%clk 0:01:19]} 70. Kf2 {[%clk 0:00:07]}  f4 {[%clk 0:01:18]} 71. Ke1 {[%clk 0:00:07]}  Ke5 {[%clk 0:01:17]} 72. Kd1 {[%clk 0:00:07]}  Kd4 {[%clk 0:01:17]} 73. Kd2 {[%clk 0:00:07]}  Kc4 {[%clk 0:01:17]} 74. Kd1 {[%clk 0:00:08]}  d2 {[%clk 0:00:59]} 75. Kc2 {[%clk 0:00:06]}  d1=Q+ {[%clk 0:00:58]} 76. Kxd1 {[%clk 0:00:06]}  Kd3 {[%clk 0:00:59]} 77. Ke1 {[%clk 0:00:06]}  Ke3 {[%clk 0:01:00]} 78. Kf1 {[%clk 0:00:03]}  Kxf3 {[%clk 0:01:01]} 0-1


[Site "https://www.chess.com"]

[Event "Titled Tuesday Blitz February 22 Early 2022"]
[White "Miszler, Levente"]
[Black "Baker, Chris W"]
[WhiteFideId "763276"]
[BlackFideId "401676"]
[WhiteElo "1966"]
[BlackElo "2208"]
[Result "0-1"]
[Round "05"]
[TimeControl "180+1"]
[Date "2022.02.22"]
[WhiteClock "0:00:02"]
[BlackClock "0:00:06"]

1. Nf3 {[%clk 0:02:59]}  e6 {[%clk 0:02:58]} 2. c4 {[%clk 0:02:55]}  f5 {[%clk 0:02:58]} 3. d4 {[%clk 0:02:49]}  Nf6 {[%clk 0:02:57]} 4. Nc3 {[%clk 0:02:48]}  Be7 {[%clk 0:02:57]} 5. g3 {[%clk 0:02:44]}  O-O {[%clk 0:02:57]} 6. Bg2 {[%clk 0:02:44]}  d6 {[%clk 0:02:57]} 7. O-O {[%clk 0:02:44]}  Ne4 {[%clk 0:02:54]} 8. Nd2 {[%clk 0:02:43]}  Nxc3 {[%clk 0:02:50]} 9. bxc3 {[%clk 0:02:44]}  e5 {[%clk 0:02:47]} 10. e3 {[%clk 0:02:30]}  Nc6 {[%clk 0:02:37]} 11. Nb3 {[%clk 0:02:22]}  Kh8 {[%clk 0:02:30]} 12. a4 {[%clk 0:02:16]}  Bd7 {[%clk 0:02:23]} 13. Ba3 {[%clk 0:02:11]}  Qe8 {[%clk 0:02:18]} 14. a5 {[%clk 0:02:01]}  a6 {[%clk 0:02:17]} 15. c5 {[%clk 0:01:54]}  Rd8 {[%clk 0:02:06]} 16. Qe2 {[%clk 0:01:23]}  Bc8 {[%clk 0:01:48]} 17. Rfb1 {[%clk 0:01:14]}  d5 {[%clk 0:01:43]} 18. c4 {[%clk 0:01:01]}  dxc4 {[%clk 0:01:33]} 19. Qxc4 {[%clk 0:01:02]}  exd4 {[%clk 0:01:33]} 20. exd4 {[%clk 0:01:03]}  Bf6 {[%clk 0:01:30]} 21. Rd1 {[%clk 0:01:02]}  Be6 {[%clk 0:01:14]} 22. d5 {[%clk 0:00:44]}  Bxa1 {[%clk 0:01:12]} 23. Rxa1 {[%clk 0:00:42]}  Bg8 {[%clk 0:01:03]} 24. Rd1 {[%clk 0:00:21]}  Ne5 {[%clk 0:00:59]} 25. Qe2 {[%clk 0:00:20]}  Qa4 {[%clk 0:00:46]} 26. Qxe5 {[%clk 0:00:08]}  Qxb3 {[%clk 0:00:46]} 27. Ra1 {[%clk 0:00:07]}  Rde8 {[%clk 0:00:40]} 28. Qd4 {[%clk 0:00:07]}  Re2 {[%clk 0:00:31]} 29. d6 {[%clk 0:00:05]}  cxd6 {[%clk 0:00:29]} 30. cxd6 {[%clk 0:00:05]}  Ra2 {[%clk 0:00:19]} 31. Rxa2 {[%clk 0:00:05]}  Qxa2 {[%clk 0:00:19]} 32. Bb2 {[%clk 0:00:06]}  Qb1+ {[%clk 0:00:15]} 33. Bf1 {[%clk 0:00:05]}  Rf7 {[%clk 0:00:13]} 34. Kg2 {[%clk 0:00:06]}  Rd7 {[%clk 0:00:10]} 35. Bd3 {[%clk 0:00:04]}  Qd1 {[%clk 0:00:08]} 36. Qc3 {[%clk 0:00:02]}  Bd5+ {[%clk 0:00:06]} 37. f3 {[%clk 0:00:01]}  Qxf3+ {[%clk 0:00:06]} 38. Kh3 {[%clk 0:00:02]}  Qh5# {[%clk 0:00:06]} 0-1


[Site "https://www.chess.com"]

[Event "Titled Tuesday Blitz February 22 Early 2022"]
[White "Mohammadian, Mohammad"]
[Black "Dejmek, Mark"]
[WhiteFideId "12566055"]
[BlackFideId "2017628"]
[WhiteElo "1543"]
[BlackElo "2209"]
[Result "1-0"]
[Round "05"]
[TimeControl "180+1"]
[Date "2022.02.22"]
[WhiteClock "0:01:00"]
[BlackClock "0:00:14"]

1. e4 {[%clk 0:03:00]}  e5 {[%clk 0:02:59]} 2. Nf3 {[%clk 0:03:00]}  Nc6 {[%clk 0:02:59]} 3. Bb5 {[%clk 0:02:59]}  a6 {[%clk 0:02:59]} 4. Ba4 {[%clk 0:02:59]}  Nf6 {[%clk 0:02:59]} 5. O-O {[%clk 0:02:56]}  Be7 {[%clk 0:02:59]} 6. Re1 {[%clk 0:02:56]}  b5 {[%clk 0:02:59]} 7. Bb3 {[%clk 0:02:55]}  d6 {[%clk 0:02:59]} 8. d3 {[%clk 0:02:54]}  O-O {[%clk 0:02:55]} 9. h3 {[%clk 0:02:54]}  Na5 {[%clk 0:02:40]} 10. Nc3 {[%clk 0:02:52]}  Nxb3 {[%clk 0:02:34]} 11. axb3 {[%clk 0:02:51]}  Bb7 {[%clk 0:02:28]} 12. Be3 {[%clk 0:02:50]}  Re8 {[%clk 0:02:23]} 13. Qd2 {[%clk 0:02:47]}  c5 {[%clk 0:02:15]} 14. Ra2 {[%clk 0:02:42]}  b4 {[%clk 0:02:05]} 15. Ne2 {[%clk 0:02:37]}  Qc7 {[%clk 0:02:01]} 16. Rea1 {[%clk 0:02:36]}  d5 {[%clk 0:01:57]} 17. exd5 {[%clk 0:02:35]}  Nxd5 {[%clk 0:01:57]} 18. Ng3 {[%clk 0:02:12]}  Nxe3 {[%clk 0:01:50]} 19. Qxe3 {[%clk 0:02:10]}  Bf8 {[%clk 0:01:47]} 20. Ne4 {[%clk 0:02:04]}  f5 {[%clk 0:01:35]} 21. Ned2 {[%clk 0:01:55]}  h6 {[%clk 0:00:57]} 22. Nc4 {[%clk 0:01:54]}  e4 {[%clk 0:00:57]} 23. dxe4 {[%clk 0:01:53]}  Rxe4 {[%clk 0:00:57]} 24. Qd3 {[%clk 0:01:47]}  Rd8 {[%clk 0:00:54]} 25. Qf1 {[%clk 0:01:41]}  Qf4 {[%clk 0:00:33]} 26. Na5 {[%clk 0:01:26]}  Ba8 {[%clk 0:00:29]} 27. Qxa6 {[%clk 0:01:17]}  Ree8 {[%clk 0:00:22]} 28. Nc6 {[%clk 0:01:16]}  Rd6 {[%clk 0:00:16]} 29. Qb5 {[%clk 0:01:13]}  Bxc6 {[%clk 0:00:15]} 30. Qc4+ {[%clk 0:01:00]}  Bd5 {[%clk 0:00:14]} 31. Qxf4 {[%clk 0:01:00]} 1-0


[Site "https://www.chess.com"]

[Event "Titled Tuesday Blitz February 22 Early 2022"]
[White "Moiseenko, Alexander"]
[Black "Nakamura, Hikaru"]
[WhiteFideId "14102560"]
[BlackFideId "2016192"]
[WhiteElo "2577"]
[BlackElo "2850"]
[Result "0-1"]
[Round "05"]
[TimeControl "180+1"]
[Date "2022.02.22"]
[WhiteClock "0:00:02"]
[BlackClock "0:00:39"]

1. d4 {[%clk 0:03:00]}  f5 {[%clk 0:02:53]} 2. Bg5 {[%clk 0:02:57]}  c6 {[%clk 0:02:52]} 3. Nc3 {[%clk 0:02:51]}  Qb6 {[%clk 0:02:49]} 4. Qd2 {[%clk 0:02:49]}  d5 {[%clk 0:02:43]} 5. O-O-O {[%clk 0:02:40]}  e6 {[%clk 0:02:41]} 6. g4 {[%clk 0:02:35]}  Nd7 {[%clk 0:02:35]} 7. gxf5 {[%clk 0:02:33]}  exf5 {[%clk 0:02:36]} 8. Bh3 {[%clk 0:02:20]}  Ndf6 {[%clk 0:02:17]} 9. Nf3 {[%clk 0:02:01]}  Ne4 {[%clk 0:02:15]} 10. Nxe4 {[%clk 0:01:52]}  dxe4 {[%clk 0:02:01]} 11. Ne5 {[%clk 0:01:48]}  h6 {[%clk 0:02:01]} 12. Be3 {[%clk 0:01:21]}  Qa6 {[%clk 0:01:29]} 13. a3 {[%clk 0:01:07]}  Be6 {[%clk 0:01:28]} 14. Ng6 {[%clk 0:01:01]}  Bxa3 {[%clk 0:01:28]} 15. Qc3 {[%clk 0:00:41]}  Bf8 {[%clk 0:01:13]} 16. Nxh8 {[%clk 0:00:35]}  Nf6 {[%clk 0:01:06]} 17. d5 {[%clk 0:00:18]}  O-O-O {[%clk 0:01:06]} 18. Ng6 {[%clk 0:00:11]}  Nxd5 {[%clk 0:01:04]} 19. Rxd5 {[%clk 0:00:08]}  Qa1+ {[%clk 0:00:49]} 20. Kd2 {[%clk 0:00:08]}  Rxd5+ {[%clk 0:00:50]} 21. Bd4 {[%clk 0:00:08]}  Qxh1 {[%clk 0:00:50]} 22. Nxf8 {[%clk 0:00:07]}  Bf7 {[%clk 0:00:44]} 23. Ke3 {[%clk 0:00:04]}  Qxh2 {[%clk 0:00:44]} 24. Qa3 {[%clk 0:00:02]}  Qxh3+ {[%clk 0:00:44]} 25. f3 {[%clk 0:00:03]}  f4+ {[%clk 0:00:43]} 26. Kd2 {[%clk 0:00:02]}  Rxd4+ {[%clk 0:00:43]} 27. Kc3 {[%clk 0:00:02]}  Rc4+ {[%clk 0:00:39]} 0-1


[Site "https://www.chess.com"]